[Event "FIDE WCCC Girls-10 2024"]
[Site "Montesilvano"]
[Date "2024.11.24"]
[Round "9.7"]
[White "Mukhorina, Mariya Dm"]
[Black "Cetin, Beren"]
[Result "1-0"]
[Annotator "NA RC"]
[ECO "B89"]
[WhiteElo "1567"]
[BlackElo "1658"]
[PlyCount "79"]
[EventDate "2024.11.18"]
[EventType "swiss"]
[EventCountry "ITA"]
[SourceTitle "playchess.com"]
[Source "ChessBase"]
[SourceQuality "1"]
[TimeControl "5400+30"]

1. e4 {[%emt 0:00:04]} c5 {[%emt 0:00:28]} 2. Nf3 {[%emt 0:00:02]} Nc6 {[%emt 0:00:09]} 3. d4 {[%emt 0:00:15]} cxd4 {[%emt 0:00:20]} 4. Nxd4 {[%emt 0:00:03]} Nf6 {[%emt 0:00:07]} 5. Nc3 {[%emt 0:00:24]} d6 {[%emt 0:00:10]} 6. Bc4 {[%emt 0:00:08]} e6 {[%emt 0:02:29]} 7. Be3 {[%emt 0:00:46]} Be7 {[%emt 0:00:15]} 8. Qe2 {[%emt 0:00:25]} a6 {[%emt 0:03:43]} 9. O-O-O {[%emt 0:00:34]} Qc7 {[%emt 0:01:06]} 10. Bb3 {[%emt 0:02:16]} O-O {[%emt 0:01:43]} 11. g4 {[%emt 1:31:03]} b5 {[%emt 0:09:04]} 12. g5 {[%emt 0:00:00]} Ne8 {[%emt 0:09:09]} 13. f4 {[%emt 0:00:00]} Bb7 {[%emt 0:02:47]} 14. Rhg1 {[%emt 0:00:00]} Nxd4 {[%emt 0:09:40]} 15. Bxd4 {[%emt 0:00:00]} e5 {[%emt 0:03:57]} 16. Bf2 {[%emt 0:00:00]} exf4 {[%emt 0:08:39]} 17. h4 {[%emt 0:00:00]} b4 {[%emt 0:03:09]} 18. Na4 {[%emt 0:00:00]} Kh8 {[%emt 0:20:50]} 19. h5 {[%emt 0:00:00]} f6 {[%emt 0:05:42]} 20. g6 {[%emt 0:00:00]} h6 {[%emt 0:00:35]} 21. Bd4 {[%emt 0:00:00]} d5 {[%emt 0:06:30]} 22. exd5 {[%emt 0:00:00]} Bd6 {[%emt 0:01:05]} 23. Qf2 {[%emt 0:00:00]} Be5 {[%emt 0:02:13]} 24. Bb6 {[%emt 0:00:00]} Qb8 {[%emt 0:03:41]} 25. Bc5 {[%emt 0:00:00]} Nd6 {[%emt 0:04:46]} 26. Rge1 {[%emt 0:00:00]} Qc7 {[%emt 0:00:14]} 27. Bb6 {[%emt 0:00:00]} Qc8 {[%emt 0:00:31]} 28. Bd4 {[%emt 0:00:00]} Bxd4 {[%emt 0:00:30]} 29. Rxd4 {[%emt 0:00:00]} Qf5 {[%emt 0:00:52]} 30. Rxf4 {[%emt 0:00:00]} Qxh5 {[%emt 0:00:10]} 31. Nc5 {[%emt 0:00:00]} Rae8 {[%emt 0:00:39]} 32. Ne6 {[%emt 0:00:00]} Rg8 33. Qg2 a5 {[%emt 0:01:03]} 34. Rh1 {[%emt 0:05:39]} Qe5 {[%emt 0:00:06]} 35. Qh2 {[%emt 0:00:18]} Rxe6 36. Qd2 {[%emt 0:01:54]} Re7 {[%emt 0:01:26]} 37. Re4 {[%emt 0:02:08]} Qg5 {[%emt 0:00:24]} 38. Qxg5 {[%emt 0:00:11]} fxg5 {[%emt 0:00:12]} 39. Rxe7 {[%emt 0:00:02]} a4 {[%emt 0:00:37]} 40. Rxh6+ 1-0

[Event "FIDE WCCC Girls-10 2024"]
[Site "Montesilvano"]
[Date "2024.11.24"]
[Round "9.8"]
[White "Zhumambayeva Aliya"]
[Black "Zhang, Weiai"]
[Result "1-0"]
[Annotator "NA RC"]
[ECO "B52"]
[WhiteElo "1607"]
[BlackElo "1488"]
[PlyCount "101"]
[EventDate "2024.11.18"]
[EventType "swiss"]
[EventCountry "ITA"]
[SourceTitle "playchess.com"]
[Source "ChessBase"]
[SourceQuality "1"]
[TimeControl "5400+30"]

1. e4 {[%emt 0:00:02]} c5 {[%emt 0:00:05]} 2. Nf3 {[%emt 0:00:03]} d6 {[%emt 0:00:06]} 3. Bb5+ {[%emt 0:00:04]} Bd7 {[%emt 0:00:07]} 4. Bxd7+ {[%emt 0:00:05]} Qxd7 {[%emt 0:00:05]} 5. c4 {[%emt 0:00:04]} g6 {[%emt 0:00:08]} 6. Nc3 {[%emt 0:00:06]} Bg7 {[%emt 0:00:15]} 7. d4 {[%emt 0:00:07]} cxd4 {[%emt 0:00:07]} 8. Nxd4 {[%emt 0:00:03]} Nf6 {[%emt 0:00:13]} 9. f3 {[%emt 0:00:12]} O-O {[%emt 0:00:09]} 10. Be3 {[%emt 0:00:09]} Rc8 {[%emt 0:00:37]} 11. Qd3 {[%emt 0:01:13]} Nc6 {[%emt 0:01:25]} 12. b3 {[%emt 0:00:39]} Rd8 {[%emt 0:14:25]} 13. O-O {[%emt 0:00:13]} Rac8 {[%emt 0:02:16]} 14. Rac1 {[%emt 0:00:35]} Ne5 {[%emt 0:09:27]} 15. Qe2 {[%emt 0:00:09]} e6 {[%emt 0:01:52]} 16. Rfd1 {[%emt 0:02:41]} Qe7 {[%emt 0:02:44]} 17. Rc2 {[%emt 0:01:47]} Rd7 {[%emt 0:01:42]} 18. Bg5 {[%emt 0:01:57]} Rcd8 {[%emt 0:05:23]} 19. Rcd2 {[%emt 0:01:28]} Nc6 {[%emt 0:02:04]} 20. Nxc6 {[%emt 0:02:02]} bxc6 {[%emt 0:00:41]} 21. Rd3 {[%emt 0:00:42]} Qf8 {[%emt 0:09:08]} 22. Qd2 {[%emt 0:01:43]} h6 {[%emt 0:06:59]} 23. Bh4 {[%emt 0:03:35]} e5 {[%emt 0:05:22]} 24. Bxf6 {[%emt 0:05:54]} Bxf6 {[%emt 0:00:12]} 25. Kh1 {[%emt 0:01:24]} Bg5 {[%emt 0:02:01]} 26. Qf2 {[%emt 0:00:33]} Qe7 {[%emt 0:01:02]} 27. g3 {[%emt 0:02:07]} Bf6 {[%emt 0:03:38]} 28. Qd2 {[%emt 0:01:02]} Bg7 {[%emt 0:00:13]} 29. Na4 {[%emt 0:02:42]} Bf8 {[%emt 0:07:05]} 30. Nc5 {[%emt 0:03:20]} Rc7 {[%emt 0:00:18]} 31. Na6 {[%emt 0:00:10]} Rb7 {[%emt 0:01:18]} 32. c5 {[%emt 0:05:54]} Rbd7 {[%emt 0:04:46]} 33. Nb4 {[%emt 0:04:18]} Qe6 {[%emt 0:08:34]} 34. Nxc6 {[%emt 0:13:01]} Rc8 {[%emt 0:00:11]} 35. Nb4 {[%emt 0:00:22]} Rxc5 {[%emt 0:00:33]} 36. Nd5 {[%emt 0:00:07]} Kg7 {[%emt 0:03:43]} 37. Rc3 {[%emt 0:00:58]} Rxc3 {[%emt 0:02:08]} 38. Qxc3 {[%emt 0:00:04]} f5 {[%emt 0:02:23]} 39. Rf1 {[%emt 0:03:04]} fxe4 {[%emt 0:01:54]} 40. fxe4 {[%emt 0:00:17]} Rf7 {[%emt 0:00:16]} 41. Rxf7+ {[%emt 0:00:22]} Qxf7 {[%emt 0:00:09]} 42. Kg2 {[%emt 0:00:04]} Qd7 {[%emt 0:01:02]} 43. h3 {[%emt 0:01:16]} Be7 {[%emt 0:00:49]} 44. b4 {[%emt 0:02:20]} Bd8 {[%emt 0:00:49]} 45. Qb3 {[%emt 0:01:48]} Qb5 {[%emt 0:01:43]} 46. Qc2 {[%emt 0:01:48]} a5 {[%emt 0:00:52]} 47. a4 {[%emt 0:00:46]} Qb7 {[%emt 0:01:02]} 48. b5 {[%emt 0:00:03]} Qb8 {[%emt 0:01:22]} 49. Qc6 {[%emt 0:00:18]} Kf8 {[%emt 0:00:43]} 50. b6 {[%emt 0:00:35]} Bg5 {[%emt 0:00:41]} 51. b7 {[%emt 0:00:22]} 1-0

[Event "FIDE WCCC Girls-10 2024"]
[Site "Montesilvano"]
[Date "2024.11.24"]
[Round "9.9"]
[White "Meng, Miranda"]
[Black "Khusnitdinova, Husnorakhon"]
[Result "0-1"]
[Annotator "NA RC"]
[ECO "D02"]
[WhiteElo "1675"]
[BlackElo "1626"]
[PlyCount "152"]
[EventDate "2024.11.18"]
[EventType "swiss"]
[EventCountry "ITA"]
[SourceTitle "playchess.com"]
[Source "ChessBase"]
[SourceQuality "1"]
[TimeControl "5400+30"]

1. d4 {[%emt 0:00:02]} Nf6 {[%emt 0:00:07]} 2. Nf3 {[%emt 0:00:04]} d5 {[%emt 0:00:10]} 3. Bf4 {[%emt 0:00:10]} c5 {[%emt 0:00:43]} 4. c3 {[%emt 0:00:09]} Nc6 {[%emt 0:00:25]} 5. e3 {[%emt 0:00:26]} Qb6 {[%emt 0:00:12]} 6. Qb3 {[%emt 0:00:52]} c4 {[%emt 0:00:06]} 7. Qc2 {[%emt 0:00:07]} Bf5 {[%emt 0:00:11]} 8. Qc1 {[%emt 0:00:05]} e6 {[%emt 0:00:26]} 9. Nbd2 {[%emt 0:00:14]} h6 {[%emt 0:01:27]} 10. h3 {[%emt 0:00:32]} Be7 {[%emt 0:01:10]} 11. Be2 {[%emt 0:01:06]} O-O {[%emt 0:00:12]} 12. O-O {[%emt 0:00:08]} Rac8 {[%emt 0:02:45]} 13. Re1 {[%emt 0:02:16]} Qd8 {[%emt 0:02:32]} 14. Bd1 {[%emt 0:04:29]} Bd6 {[%emt 0:07:13]} 15. Bxd6 {[%emt 0:00:58]} Qxd6 {[%emt 0:00:02]} 16. Bc2 {[%emt 0:00:42]} Bxc2 {[%emt 0:03:58]} 17. Qxc2 {[%emt 0:00:35]} b5 {[%emt 0:03:50]} 18. a4 {[%emt 0:02:49]} b4 {[%emt 0:03:35]} 19. e4 {[%emt 0:03:03]} Nd7 {[%emt 0:01:17]} 20. Nf1 {[%emt 0:08:07]} Rb8 {[%emt 0:05:35]} 21. N3d2 {[%emt 0:03:46]} Rb7 {[%emt 0:04:38]} 22. exd5 {[%emt 0:08:43]} exd5 {[%emt 0:00:12]} 23. Re2 {[%emt 0:04:50]} Nf6 {[%emt 0:01:11]} 24. Ng3 {[%emt 0:08:08]} Rfb8 {[%emt 0:04:44]} 25. Nf3 {[%emt 0:01:22]} bxc3 {[%emt 0:56:19]} 26. bxc3 {[%emt 0:04:12]} Rb3 {[%emt 0:00:00]} 27. Ne5 {[%emt 0:04:40]} Qc7 {[%emt 0:00:00]} 28. Nf5 {[%emt 0:04:31]} Nxe5 {[%emt 0:00:00]} 29. Rxe5 {[%emt 0:03:21]} Qb7 {[%emt 0:00:00]} 30. Qd2 {[%emt 0:04:00]} Kh7 {[%emt 0:00:00]} 31. Qf4 {[%emt 0:07:20]} Rb1+ {[%emt 0:00:00]} 32. Rxb1 {[%emt 0:00:21]} Qxb1+ {[%emt 0:00:00]} 33. Kh2 {[%emt 0:00:03]} Rb6 {[%emt 0:00:00]} 34. Ne3 {[%emt 0:04:11]} Rd6 {[%emt 0:00:00]} 35. Re7 {[%emt 0:03:21]} Ra6 {[%emt 0:00:00]} 36. Rxf7 {[%emt 0:01:13]} Qg6 {[%emt 0:00:00]} 37. Rb7 {[%emt 0:03:10]} Rxa4 {[%emt 0:00:00]} 38. Qf5 {[%emt 0:01:33]} Ra3 {[%emt 0:00:00]} 39. Qxg6+ {[%emt 0:01:17]} Kxg6 {[%emt 0:00:00]} 40. g4 {[%emt 0:01:10]} Ra2 {[%emt 0:00:00]} 41. Nf5 {[%emt 0:01:40]} Ne4 {[%emt 0:00:00]} 42. Rxg7+ {[%emt 0:00:53]} Kf6 43. Kg1 {[%emt 0:01:00]} Nxc3 {[%emt 0:00:00]} 44. Rh7 {[%emt 0:01:01]} Ne2+ 45. Kh2 {[%emt 0:00:42]} c3 {[%emt 0:00:00]} 46. Rxh6+ {[%emt 0:00:57]} Kg5 47. Rc6 {[%emt 0:01:06]} c2 48. Ne3 {[%emt 0:03:23]} c1=Q {[%emt 0:00:00]} 49. Rxc1 {[%emt 0:00:12]} Nxc1 {[%emt 0:00:00]} 50. Nxd5 {[%emt 0:00:27]} Kh4 {[%emt 0:00:00]} 51. Kg2 {[%emt 0:00:34]} Nd3 {[%emt 0:00:00]} 52. Ne3 {[%emt 0:01:07]} Rxf2+ {[%emt 0:00:00]} 53. Kg1 {[%emt 0:00:19]} Kxh3 {[%emt 0:00:00]} 54. d5 {[%emt 0:00:14]} Ra2 {[%emt 0:00:00]} 55. d6 {[%emt 0:00:40]} Ra1+ {[%emt 0:00:00]} 56. Nf1 {[%emt 0:00:07]} Rd1 {[%emt 0:00:00]} 57. g5 {[%emt 0:00:26]} Ne5 {[%emt 0:00:03]} 58. Kf2 {[%emt 0:00:17]} Rxd6 {[%emt 0:00:12]} 59. Ke3 {[%emt 0:00:11]} Ng4+ {[%emt 0:00:54]} 60. Kf4 {[%emt 0:00:19]} Kg2 {[%emt 0:00:22]} 61. Kxg4 {[%emt 0:00:17]} Kxf1 {[%emt 0:00:08]} 62. Kf5 {[%emt 0:00:11]} a5 {[%emt 0:00:18]} 63. g6 {[%emt 0:00:04]} Rxg6 {[%emt 0:00:05]} 64. Kxg6 {[%emt 0:00:06]} a4 {[%emt 0:01:07]} 65. Kf5 {[%emt 0:00:05]} a3 {[%emt 0:00:06]} 66. Ke5 {[%emt 0:00:04]} a2 {[%emt 0:00:04]} 67. Kf5 {[%emt 0:00:07]} a1=Q {[%emt 0:17:41]} 68. Kg5 {[%emt 0:00:04]} Qd4 {[%emt 0:00:00]} 69. Kf5 {[%emt 0:00:09]} Qe3 {[%emt 0:00:00]} 70. Kg4 {[%emt 0:00:10]} Qf2 {[%emt 0:00:00]} 71. Kg5 {[%emt 0:00:07]} Qf7 {[%emt 0:00:00]} 72. Kg4 {[%emt 0:00:09]} Qf6 {[%emt 0:00:00]} 73. Kg3 {[%emt 0:00:06]} Qf5 {[%emt 0:00:00]} 74. Kh4 {[%emt 0:00:06]} Qg6 {[%emt 0:00:00]} 75. Kh3 {[%emt 0:00:11]} Qg5 {[%emt 0:00:00]} 76. Kh2 {[%emt 0:00:04]} Qg2# {[%emt 0:00:00]} 0-1

[Event "FIDE WCCC Girls-10 2024"]
[Site "Montesilvano"]
[Date "2024.11.24"]
[Round "9.10"]
[White "Yunker, Alisa Genrietta"]
[Black "Isakhanyan, Nare"]
[Result "1-0"]
[Annotator "NA RC"]
[ECO "D94"]
[WhiteElo "1872"]
[BlackElo "1540"]
[PlyCount "137"]
[EventDate "2024.11.18"]
[EventType "swiss"]
[EventCountry "ITA"]
[SourceTitle "playchess.com"]
[Source "ChessBase"]
[SourceQuality "1"]
[TimeControl "5400+30"]

1. d4 {[%emt 0:00:02]} Nf6 {[%emt 0:00:04]} 2. c4 {[%emt 0:00:06]} c5 {[%emt 0:00:04]} 3. e3 {[%emt 0:00:06]} g6 {[%emt 0:00:13]} 4. Nc3 {[%emt 0:00:03]} Bg7 {[%emt 0:00:08]} 5. Nf3 {[%emt 0:00:05]} O-O {[%emt 0:00:10]} 6. Be2 {[%emt 0:00:16]} cxd4 {[%emt 0:00:14]} 7. exd4 {[%emt 0:00:04]} d5 {[%emt 0:00:05]} 8. O-O {[%emt 0:00:09]} Nc6 {[%emt 0:00:04]} 9. h3 {[%emt 0:00:23]} dxc4 {[%emt 0:00:24]} 10. Bxc4 {[%emt 0:00:29]} Na5 {[%emt 0:00:14]} 11. Be2 {[%emt 0:00:20]} Be6 {[%emt 0:00:09]} 12. Be3 {[%emt 0:03:34]} Rc8 {[%emt 0:00:32]} 13. Ng5 {[%emt 0:01:01]} Bc4 {[%emt 0:04:26]} 14. Re1 {[%emt 0:02:12]} Bxe2 {[%emt 0:02:42]} 15. Qxe2 {[%emt 0:03:30]} a6 {[%emt 0:03:51]} 16. Qd3 {[%emt 0:09:06]} Nd5 {[%emt 0:03:14]} 17. Rad1 {[%emt 0:05:48]} Nc4 {[%emt 0:04:08]} 18. Bc1 {[%emt 0:07:24]} b5 {[%emt 0:05:13]} 19. Nce4 {[%emt 0:04:00]} Qb6 {[%emt 0:07:32]} 20. b3 {[%emt 0:02:45]} Nd6 {[%emt 0:05:37]} 21. Nc5 {[%emt 0:13:35]} Rfd8 {[%emt 0:05:24]} 22. Bb2 {[%emt 0:10:24]} Nf5 {[%emt 0:12:34]} 23. Qf3 {[%emt 0:04:44]} Rc6 {[%emt 0:26:03]} 24. g4 {[%emt 0:06:38]} Nh6 {[%emt 0:01:46]} 25. Nge4 {[%emt 0:00:32]} Qc7 {[%emt 0:05:25]} 26. Qg3 {[%emt 0:04:46]} Qxg3+ {[%emt 0:01:56]} 27. fxg3 {[%emt 0:00:06]} Nf6 {[%emt 0:02:48]} 28. Nf2 {[%emt 0:03:03]} Nd5 {[%emt 0:00:29]} 29. Rd2 {[%emt 0:00:35]} f5 {[%emt 0:00:58]} 30. gxf5 {[%emt 0:05:18]} Nxf5 {[%emt 0:00:45]} 31. Nce4 {[%emt 0:01:01]} Nf6 {[%emt 0:00:56]} 32. g4 {[%emt 0:01:25]} Nh4 {[%emt 0:02:40]} 33. Re3 Nd5 {[%emt 0:03:26]} 34. Rg3 {[%emt 0:02:21]} h6 {[%emt 0:00:59]} 35. Nd3 {[%emt 0:02:58]} g5 36. Ne5 {[%emt 0:00:14]} Rb6 {[%emt 0:01:56]} 37. a3 {[%emt 0:01:45]} Nf4 {[%emt 0:00:16]} 38. Kf2 {[%emt 0:02:24]} Nhg6 {[%emt 0:00:52]} 39. Nxg6 {[%emt 0:01:55]} Rxg6 {[%emt 0:00:14]} 40. Re3 {[%emt 0:00:58]} Rc6 {[%emt 0:00:50]} 41. Re1 {[%emt 0:01:25]} Nxh3+ {[%emt 0:00:30]} 42. Kg3 {[%emt 0:00:01]} Nf4 {[%emt 0:00:17]} 43. Red1 {[%emt 0:00:18]} Nd5 {[%emt 0:00:56]} 44. Rf1 {[%emt 0:00:31]} Nf6 {[%emt 0:00:25]} 45. Re2 {[%emt 0:01:27]} Nxe4+ {[%emt 0:00:51]} 46. Rxe4 {[%emt 0:00:01]} Bf6 {[%emt 0:00:33]} 47. Kf3 {[%emt 0:00:58]} Rc2 {[%emt 0:00:27]} 48. Rf2 {[%emt 0:00:50]} Rxf2+ {[%emt 0:00:17]} 49. Kxf2 {[%emt 0:00:00]} Kf7 {[%emt 0:00:38]} 50. Ke2 {[%emt 0:00:14]} Rd6 {[%emt 0:00:17]} 51. Kd3 {[%emt 0:00:27]} e5 {[%emt 0:00:55]} 52. Re2 {[%emt 0:01:04]} exd4 {[%emt 0:00:20]} 53. Rf2 {[%emt 0:00:19]} Ke7 {[%emt 0:00:30]} 54. a4 {[%emt 0:00:10]} bxa4 {[%emt 0:00:27]} 55. Ba3 {[%emt 0:00:04]} Be5 {[%emt 0:00:27]} 56. bxa4 {[%emt 0:00:06]} Ke6 {[%emt 0:00:14]} 57. Bxd6 {[%emt 0:00:04]} Kxd6 {[%emt 0:00:05]} 58. Kc4 {[%emt 0:00:11]} Kc6 {[%emt 0:00:41]} 59. Rf8 {[%emt 0:00:37]} Kb6 {[%emt 0:01:07]} 60. a5+ {[%emt 0:00:15]} Kc6 {[%emt 0:00:15]} 61. Re8 {[%emt 0:00:13]} Kd6 {[%emt 0:00:47]} 62. Ra8 {[%emt 0:00:04]} Ke7 {[%emt 0:00:37]} 63. Rxa6 {[%emt 0:00:07]} Bc7 {[%emt 0:00:30]} 64. Kxd4 {[%emt 0:00:04]} Kd7 {[%emt 0:00:15]} 65. Kd5 {[%emt 0:00:13]} Ke7 {[%emt 0:00:13]} 66. Ra7 {[%emt 0:00:07]} Kd7 {[%emt 0:00:09]} 67. Rb7 {[%emt 0:00:10]} Kc8 {[%emt 0:00:08]} 68. a6 {[%emt 0:00:06]} Bf4 {[%emt 0:00:14]} 69. Rh7 {[%emt 0:00:06]} 1-0

[Event "FIDE WCCC Girls-10 2024"]
[Site "Montesilvano"]
[Date "2024.11.24"]
[Round "9.11"]
[White "Wang, Yi Xuan"]
[Black "Rekhviashvili, Mariam"]
[Result "0-1"]
[Annotator "NA RC"]
[ECO "D36"]
[WhiteElo "1668"]
[BlackElo "1610"]
[PlyCount "128"]
[EventDate "2024.11.18"]
[EventType "swiss"]
[EventCountry "ITA"]
[SourceTitle "playchess.com"]
[Source "ChessBase"]
[SourceQuality "1"]
[TimeControl "5400+30"]

1. d4 {[%emt 0:00:09]} d5 {[%emt 0:00:09]} 2. c4 {[%emt 0:00:16]} e6 {[%emt 0:00:08]} 3. Nc3 {[%emt 0:00:19]} Nf6 {[%emt 0:00:12]} 4. cxd5 {[%emt 0:00:27]} exd5 {[%emt 0:00:08]} 5. Bg5 {[%emt 0:00:44]} Be7 {[%emt 0:00:12]} 6. e3 {[%emt 0:00:07]} O-O {[%emt 0:00:08]} 7. Bd3 {[%emt 0:00:10]} h6 {[%emt 0:00:22]} 8. Bh4 {[%emt 0:00:06]} Re8 {[%emt 0:00:15]} 9. Nge2 {[%emt 0:00:36]} c6 {[%emt 0:00:17]} 10. O-O {[%emt 0:00:09]} Ne4 {[%emt 0:00:40]} 11. Bxe7 {[%emt 0:01:21]} Qxe7 {[%emt 0:00:50]} 12. Bxe4 {[%emt 0:00:54]} dxe4 {[%emt 0:00:18]} 13. Qc2 {[%emt 0:00:22]} Nd7 {[%emt 0:01:26]} 14. Ng3 {[%emt 0:11:27]} Nf6 {[%emt 0:00:14]} 15. Rad1 {[%emt 0:04:55]} Bg4 {[%emt 0:18:53]} 16. Rd2 {[%emt 0:00:48]} Rad8 {[%emt 0:00:24]} 17. h3 {[%emt 0:09:11]} Bh5 {[%emt 0:02:52]} 18. Nxh5 {[%emt 0:01:54]} Nxh5 {[%emt 0:00:14]} 19. d5 {[%emt 0:06:59]} Qc5 {[%emt 0:04:03]} 20. Rfd1 {[%emt 0:07:57]} Nf6 {[%emt 0:05:39]} 21. Qb3 {[%emt 0:09:34]} cxd5 {[%emt 0:07:29]} 22. Nxd5 {[%emt 0:00:25]} Nxd5 {[%emt 0:00:19]} 23. Rxd5 {[%emt 0:00:59]} Rxd5 {[%emt 0:00:34]} 24. Qxd5 {[%emt 0:02:26]} Qxd5 {[%emt 0:01:27]} 25. Rxd5 {[%emt 0:00:12]} Re7 {[%emt 0:01:38]} 26. Kf1 {[%emt 0:08:13]} Rc7 {[%emt 0:01:06]} 27. Ke2 {[%emt 0:01:10]} Kf8 {[%emt 0:14:00]} 28. Kd2 {[%emt 0:03:22]} f6 {[%emt 0:03:02]} 29. g4 {[%emt 0:02:18]} Kf7 {[%emt 0:01:45]} 30. b4 {[%emt 0:07:06]} Ke6 {[%emt 0:10:42]} 31. Ra5 {[%emt 0:06:44]} a6 {[%emt 0:01:01]} 32. Ra3 {[%emt 0:03:38]} f5 {[%emt 0:01:07]} 33. gxf5+ {[%emt 0:01:57]} Kxf5 {[%emt 0:00:26]} 34. Ra5+ {[%emt 0:00:14]} Ke6 {[%emt 0:00:32]} 35. h4 {[%emt 0:00:31]} Rf7 {[%emt 0:13:13]} 36. Ke2 {[%emt 0:01:13]} Rf5 37. Rxf5 {[%emt 0:04:49]} Kxf5 {[%emt 0:03:50]} 38. f3 {[%emt 0:00:13]} g5 {[%emt 0:00:29]} 39. hxg5 {[%emt 0:00:47]} hxg5 {[%emt 0:00:06]} 40. fxe4+ {[%emt 0:01:01]} Kxe4 {[%emt 0:00:04]} 41. a4 {[%emt 0:00:55]} g4 {[%emt 0:01:32]} 42. b5 {[%emt 0:00:34]} a5 {[%emt 0:02:58]} 43. Kf2 {[%emt 0:01:00]} g3+ {[%emt 0:00:29]} 44. Kxg3 {[%emt 0:00:52]} Kxe3 {[%emt 0:00:05]} 45. Kg4 {[%emt 0:00:20]} Kd4 {[%emt 0:01:34]} 46. Kf4 {[%emt 0:00:05]} Kc4 {[%emt 0:00:16]} 47. Ke4 {[%emt 0:00:03]} Kb4 {[%emt 0:00:20]} 48. Kd4 {[%emt 0:00:04]} Kxa4 {[%emt 0:00:09]} 49. Kc4 {[%emt 0:00:05]} b6 {[%emt 0:00:03]} 50. Kc3 {[%emt 0:00:31]} Kxb5 {[%emt 0:00:05]} 51. Kb3 {[%emt 0:00:04]} a4+ {[%emt 0:00:52]} 52. Ka3 {[%emt 0:00:05]} Ka5 {[%emt 0:00:43]} 53. Ka2 {[%emt 0:00:04]} b5 {[%emt 0:00:07]} 54. Kb2 {[%emt 0:00:22]} Kb4 {[%emt 0:00:18]} 55. Ka2 {[%emt 0:00:19]} Kc3 {[%emt 0:00:05]} 56. Kb1 {[%emt 0:00:05]} b4 {[%emt 0:00:13]} 57. Kc1 {[%emt 0:00:20]} a3 {[%emt 0:00:10]} 58. Kb1 {[%emt 0:00:05]} b3 {[%emt 0:00:05]} 59. Ka1 {[%emt 0:00:11]} b2+ {[%emt 0:00:11]} 60. Kb1 {[%emt 0:00:07]} a2+ {[%emt 0:00:06]} 61. Kxa2 {[%emt 0:00:04]} Kc2 {[%emt 0:00:09]} 62. Ka3 {[%emt 0:00:06]} b1=Q {[%emt 0:00:08]} 63. Ka4 {[%emt 0:00:03]} Qb6 {[%emt 0:00:10]} 64. Ka3 {[%emt 0:00:08]} Qb3# {[%emt 0:00:04]} 0-1

[Event "FIDE WCCC Girls-10 2024"]
[Site "Montesilvano"]
[Date "2024.11.24"]
[Round "9.12"]
[White "Bayramova, Aya"]
[Black "Sun, Yucan(Sd)"]
[Result "0-1"]
[Annotator "NA RC"]
[ECO "D90"]
[WhiteElo "1634"]
[BlackElo "1725"]
[PlyCount "100"]
[EventDate "2024.11.18"]
[EventType "swiss"]
[EventCountry "ITA"]
[SourceTitle "playchess.com"]
[Source "ChessBase"]
[SourceQuality "1"]
[TimeControl "5400+30"]

1. d4 {[%emt 0:00:02]} Nf6 {[%emt 0:00:25]} 2. c4 {[%emt 0:00:29]} c6 {[%emt 0:00:07]} 3. Nc3 {[%emt 0:00:29]} d5 {[%emt 0:00:05]} 4. Nf3 {[%emt 0:00:37]} g6 {[%emt 0:00:20]} 5. Bf4 {[%emt 0:02:12]} dxc4 {[%emt 0:00:26]} 6. a4 {[%emt 0:01:27]} Nd5 {[%emt 0:01:14]} 7. Be5 {[%emt 0:04:29]} f6 {[%emt 0:02:24]} 8. Bg3 {[%emt 0:01:11]} Bg7 {[%emt 0:07:55]} 9. e3 {[%emt 0:01:57]} Nxc3 {[%emt 0:01:49]} 10. bxc3 {[%emt 0:00:17]} Be6 {[%emt 0:00:55]} 11. Nd2 {[%emt 0:06:42]} b5 {[%emt 0:03:05]} 12. Be2 {[%emt 0:01:18]} a6 {[%emt 0:06:29]} 13. O-O {[%emt 0:06:41]} O-O {[%emt 0:01:31]} 14. Bf3 {[%emt 0:06:45]} Bd5 {[%emt 0:05:45]} 15. axb5 {[%emt 0:05:56]} cxb5 {[%emt 0:02:01]} 16. Bxb8 {[%emt 0:00:27]} Bxf3 {[%emt 0:01:17]} 17. Qxf3 {[%emt 0:00:14]} Qxb8 {[%emt 0:00:33]} 18. Ne4 {[%emt 0:00:24]} f5 {[%emt 0:02:26]} 19. Nc5 {[%emt 0:00:27]} Qd6 {[%emt 0:01:07]} 20. Ra5 {[%emt 0:01:21]} Ra7 {[%emt 0:04:01]} 21. Rfa1 {[%emt 0:00:24]} Rfa8 {[%emt 0:00:53]} 22. Nb7 {[%emt 0:01:19]} Qb6 {[%emt 0:06:07]} 23. Nc5 {[%emt 0:01:22]} e6 {[%emt 0:06:37]} 24. Qe2 {[%emt 0:04:51]} Bf8 {[%emt 0:03:19]} 25. e4 {[%emt 0:14:42]} Bxc5 {[%emt 0:02:27]} 26. dxc5 {[%emt 0:00:13]} Qxc5 {[%emt 0:00:51]} 27. exf5 {[%emt 0:00:11]} Qxf5 {[%emt 0:00:48]} 28. g4 {[%emt 0:01:36]} Qd5 {[%emt 0:04:05]} 29. R5a2 {[%emt 0:05:21]} e5 {[%emt 0:05:15]} 30. Rd2 {[%emt 0:02:00]} Qe6 {[%emt 0:05:19]} 31. Re1 {[%emt 0:01:13]} Re8 {[%emt 0:02:34]} 32. Qe4 {[%emt 0:02:31]} Rd7 {[%emt 0:03:07]} 33. Red1 {[%emt 0:03:42]} Rxd2 {[%emt 0:02:44]} 34. Rxd2 {[%emt 0:01:16]} Kg7 {[%emt 0:03:19]} 35. Kg2 {[%emt 0:08:35]} Re7 {[%emt 0:03:40]} 36. h3 {[%emt 0:02:03]} Qf6 {[%emt 0:02:12]} 37. f3 {[%emt 0:06:07]} Qf4 38. Ra2 {[%emt 0:03:24]} Qxe4 {[%emt 0:02:35]} 39. fxe4 Re6 {[%emt 0:02:35]} 40. g5 {[%emt 0:03:21]} Kf7 {[%emt 0:01:04]} 41. Kf3 {[%emt 0:00:17]} Ke7 {[%emt 0:02:25]} 42. Ke3 {[%emt 0:01:21]} Kd7 {[%emt 0:00:51]} 43. Rf2 {[%emt 0:01:37]} a5 {[%emt 0:01:25]} 44. Rb2 {[%emt 0:01:06]} Kc6 {[%emt 0:00:56]} 45. Ra2 {[%emt 0:00:31]} a4 {[%emt 0:00:56]} 46. Ra3 {[%emt 0:00:26]} Kc5 {[%emt 0:00:23]} 47. Ra2 {[%emt 0:00:27]} Rd6 {[%emt 0:00:30]} 48. Kf3 {[%emt 0:00:29]} Rd3+ {[%emt 0:00:19]} 49. Kg4 {[%emt 0:00:38]} Rxc3 {[%emt 0:00:10]} 50. Kh4 {[%emt 0:00:29]} Re3 {[%emt 0:00:12]} 0-1